[Event "1st Online FIDE Cup for disabled players"]
[Site "T#646224FIDE"]
[Date "2020.05.21"]
[Round "3"]
[White "Marcin Tazbir"]
[Black "Lipilin_Ilia2002"]
[Result "1-0"]
[WhiteElo "1620"]
[BlackElo "1620"]
[Annotator "NA"]
[PlyCount "63"]
[EventDate "2020.05.21"]
[EventType "swiss (blitz)"]
[TimeControl "600+5"]

1. c4 {[%emt 0:00:04]} f5 {[%emt 0:00:10]} 2. g3 {[%emt 0:00:05]} Nf6 {[%emt 0:00:08]} 3. Bg2 {[%emt 0:00:01]} g6 {[%emt 0:00:03]} 4. Nc3 {[%emt 0:00:01]} Bg7 {[%emt 0:00:01]} 5. e3 {[%emt 0:00:01]} d6 {[%emt 0:00:01]} 6. Nge2 {[%emt 0:00:01]} c6 {[%emt 0:00:02]} 7. O-O {[%emt 0:00:01]} O-O {[%emt 0:00:01]} 8. b4 {[%emt 0:00:01]} e5 {[%emt 0:00:05]} 9. b5 {[%emt 0:00:01]} Be6 {[%emt 0:00:06]} 10. d3 {[%emt 0:00:03]} d5 {[%emt 0:00:09]} 11. bxc6 {[%emt 0:00:14]} bxc6 {[%emt 0:00:03]} 12. cxd5 {[%emt 0:00:13]} cxd5 {[%emt 0:00:02]} 13. Ba3 {[%emt 0:00:09]} Rf7 {[%emt 0:00:10]} 14. Rb1 {[%emt 0:00:19]} Nbd7 {[%emt 0:00:18]} 15. d4 {[%emt 0:00:27]} e4 {[%emt 0:00:10]} 16. Nf4 {[%emt 0:00:02]} Qe8 {[%emt 0:01:21]} 17. Nb5 {[%emt 0:00:05]} Bf8 {[%emt 0:00:30]} 18. Bxf8 {[%emt 0:00:05]} Nxf8 {[%emt 0:00:03]} 19. Nd6 {[%emt 0:00:05]} Qc6 {[%emt 0:00:09]} 20. Nxf7 {[%emt 0:00:04]} Bxf7 {[%emt 0:00:00]} 21. Qb3 {[%emt 0:00:21]} g5 {[%emt 0:00:03]} 22. Rfc1 {[%emt 0:00:09]} Qa6 {[%emt 0:00:04]} 23. Bf1 {[%emt 0:00:09]} Qd6 {[%emt 0:00:11]} 24. Nh3 {[%emt 0:00:06]} h6 {[%emt 0:00:03]} 25. Qb7 {[%emt 0:00:10]} Re8 {[%emt 0:00:06]} 26. Rc6 {[%emt 0:00:02]} Qd8 {[%emt 0:00:07]} 27. Qc7 {[%emt 0:00:33]} Ne6 {[%emt 0:00:48]} 28. Qxd8 {[%emt 0:00:07]} Rxd8 {[%emt 0:00:00]} 29. Be2 {[%emt 0:00:04]} Kg7 {[%emt 0:00:14]} 30. Rb7 {[%emt 0:00:07]} a5 {[%emt 0:00:05]} 31. Rxe6 {[%emt 0:00:06]} Rc8 {[%emt 0:00:04]} 32. Ree7 {[%emt 0:00:17] Lipilin_Ilia2002 Ñäàåòñÿ (Lag: Av=0.57s, max=1.6s)} 1-0